fUST/lending_fUST_20250821
["ID","MTS","AMOUNT","RATE_DAILY","PERIOD"]
[380436743,1755766255837,-151.0,0.00021917,2]
[380436744,1755766255847,-151.0,0.00021917,2]
[380436745,1755766255855,-151.0,0.00021917,2]
[380436746,1755766255865,-480.0,0.00021917,3]
[380436747,1755766255874,-480.0,0.00021917,3]
[380436748,1755766255884,-151.0,0.00021917,2]
[380436749,1755766255893,-207.5587,0.00021917,2]
[380436750,1755766255902,-151.0,0.00021917,2]
[380436751,1755766255911,-151.0,0.00021917,2]
[380436752,1755766255920,-377.40997056,0.00021917,3]
[380436753,1755766255930,-151.0,0.00021917,2]
[380436754,1755766255939,-151.0,0.00021917,2]
[380436755,1755766255949,-151.0,0.00021917,2]
[380436756,1755766255958,-151.0,0.00021917,2]
[380436757,1755766255966,-151.0,0.00021917,2]
[380436758,1755766255976,-151.0,0.00021917,2]
[380436759,1755766255985,-151.0,0.00021917,2]
[380436760,1755766255995,-286.785448,0.00021917,2]
[380436761,1755766256004,-437.55791338,0.00021917,2]
[380436762,1755766256013,-480.0,0.00021917,3]
[380436763,1755766256023,-480.0,0.00021917,3]
[380436764,1755766256032,-2097.21,0.00021917,3]
[380436765,1755766256042,-480.0,0.00021917,3]
[380436766,1755766256051,-2097.21,0.00021917,3]
[380436767,1755766256061,-2097.21,0.00021917,3]
[380436768,1755766256071,-2097.21,0.00021917,3]
[380436769,1755766256080,-2097.21,0.00021917,3]
[380436770,1755766256090,-480.0,0.00021917,3]
[380436771,1755766256099,-2097.21,0.00021917,3]
[380436772,1755766256109,-2097.21,0.00021917,3]
[380436773,1755766256118,-480.0,0.00021917,3]
[380436774,1755766256128,-480.0,0.00021917,3]
[380436775,1755766256137,-2097.21,0.00021917,3]
[380436776,1755766256147,-2097.21,0.00021917,3]
[380436777,1755766256157,-2097.21,0.00021917,3]
[380436778,1755766256167,-480.0,0.00021917,3]
[380436779,1755766256176,-2097.21,0.00021917,3]
[380436780,1755766256185,-2097.21,0.00021917,3]
[380436781,1755766256195,-2097.21,0.00021917,3]
[380436782,1755766256204,-2097.21,0.00021917,3]
[380436783,1755766256214,-2097.21,0.00021917,3]
[380436784,1755766256224,-2097.21,0.00021917,3]
[380436785,1755766256234,-480.0,0.00021917,3]
[380436786,1755766256243,-2097.21,0.00021917,3]
[380436787,1755766256252,-2097.21,0.00021917,3]
[380436788,1755766256262,-2097.21,0.00021917,3]
[380436789,1755766256271,-2097.21,0.00021917,3]
[380436790,1755766256280,-2097.21,0.00021917,3]
[380436791,1755766256290,-2097.21,0.00021917,3]
[380436792,1755766256299,-2097.21,0.00021917,3]
[380436793,1755766256309,-626.49155905,0.00021917,3]
[380436794,1755766256319,-2097.27251536,0.00021917,3]
[380436795,1755766256329,-480.0,0.00021917,3]
[380436796,1755766256339,-480.0,0.00021917,3]
[380436797,1755766256348,-862.03,0.00021917,3]
[380436798,1755766256358,-480.0,0.00021917,3]
[380436799,1755766256368,-416.53634409,0.00021917,3]
[380436800,1755766256377,-480.0,0.00021917,3]
[380436801,1755766256390,-480.0,0.00021917,3]
[380436802,1755766256400,-907.89,0.00021917,3]
[380436803,1755766256410,-7690.11,0.00021917,3]
[380436804,1755766256419,-6408.07,0.00021917,3]
[380436805,1755766256430,-896.43,0.00021917,3]
[380436806,1755766256440,-1366.69,0.00021917,3]
[380436807,1755766256449,-1668.45,0.00021917,2]
[380436808,1755766256460,-481.00502341,0.00021917,3]
[380436809,1755766256470,-462.48766079,0.00021917,3]
[380436810,1755766256479,-480.0,0.00021917,3]
[380436811,1755766256488,-480.0,0.00021917,3]
[380436812,1755766256498,-480.0,0.00021917,3]
[380436813,1755766256507,-480.0,0.00021917,3]
[380436814,1755766256518,-480.0,0.00021917,3]
[380436815,1755766256527,-481.29769433,0.00021917,3]
[380436816,1755766256537,-970.5,0.00021917,3]
[380436817,1755766256547,-480.0,0.00021917,3]
[380436818,1755766256556,-151.0,0.00021917,2]
[380436819,1755766256565,-151.0,0.00021917,2]
[380436820,1755766256574,-480.0,0.00021917,3]
[380436821,1755766256584,-211.167077,0.00021917,2]
[380436822,1755766256593,-480.0,0.00021917,3]
[380436823,1755766256603,-480.0,0.00021917,3]
[380436824,1755766256612,-1999.85,0.00021917,3]
[380436825,1755766256621,-151.0,0.00021917,2]
[380436826,1755766256632,-480.0,0.00021917,3]
[380436827,1755766256641,-151.0,0.00021917,2]
[380436828,1755766256651,-151.0,0.00021917,2]
[380436829,1755766256660,-151.0,0.00021917,2]
[380436830,1755766256671,-363.90730767,0.00021917,3]
[380436831,1755766256681,-720.18,0.00021917,3]
[380436832,1755766256690,-4255.78,0.00021917,3]
[380436833,1755766256699,-480.0,0.00021917,3]
[380436834,1755766256709,-154.13308259,0.00021917,3]
[380436835,1755766256718,-534.62,0.00021917,3]
[380436836,1755766256727,-480.0,0.00021917,3]
[380436837,1755766256736,-215.86710461,0.00021917,3]
[380436838,1755766256745,-480.0,0.00021917,3]
[380436839,1755766256755,-480.0,0.00021917,3]
[380436840,1755766256765,-480.0,0.00021917,3]
[380436841,1755766256775,-480.0,0.00021917,3]
[380436842,1755766256784,-480.0,0.00021917,3]
[380436843,1755766256793,-480.0,0.00021917,3]
[380436844,1755766256802,-1738.71,0.00021917,3]
[380436845,1755766256811,-480.0,0.00021917,3]
[380436846,1755766256821,-480.0,0.00021917,3]
[380436847,1755766256830,-480.0,0.00021917,3]
[380436848,1755766256840,-480.0,0.00021917,3]
[380436849,1755766256850,-480.0,0.00021917,3]
[380436850,1755766256859,-480.0,0.00021917,3]
[380436851,1755766256869,-345.623406,0.00021917,2]
[380436852,1755766256878,-345.623406,0.00021917,2]
[380436853,1755766256888,-480.0,0.00021917,3]
[380436854,1755766256898,-345.623406,0.00021917,2]
[380436855,1755766256908,-480.0,0.00021917,3]
[380436856,1755766256918,-1038.67,0.00021917,3]
[380436857,1755766256927,-345.623406,0.00021917,2]
[380436858,1755766256937,-345.623406,0.00021917,2]
[380436859,1755766256947,-345.623406,0.00021917,2]
[380436860,1755766256957,-345.623406,0.00021917,2]
[380436861,1755766256966,-480.0,0.00021917,3]
[380436862,1755766256975,-345.623406,0.00021917,2]
[380436863,1755766256986,-151.0,0.00021917,2]
[380436864,1755766256995,-151.0,0.00021917,2]
[380436865,1755766257005,-480.0,0.00021917,3]
[380436866,1755766257015,-151.0,0.00021917,2]
[380436867,1755766257024,-480.0,0.00021917,3]
[380436868,1755766257034,-345.623406,0.00021917,2]
[380436869,1755766257043,-151.0,0.00021917,2]
[380436870,1755766257052,-345.623406,0.00021917,2]
[380436871,1755766257062,-345.623406,0.00021917,2]
[380436872,1755766257072,-345.623406,0.00021917,2]
[380436873,1755766257082,-151.0,0.00021917,2]
[380436874,1755766257092,-151.0,0.00021917,2]
[380436875,1755766257102,-151.0,0.00021917,2]
[380436876,1755766257111,-345.623406,0.00021917,2]
[380436877,1755766257121,-151.0,0.00021917,2]
[380436878,1755766257130,-480.0,0.00021917,3]
[380436879,1755766257140,-345.623406,0.00021917,2]
[380436880,1755766257150,-480.0,0.00021917,3]
[380436881,1755766257160,-345.623406,0.00021917,2]
[380436882,1755766257169,-345.623406,0.00021917,2]
[380436883,1755766257179,-177.230381,0.00021917,2]
[380436884,1755766257189,-748.82,0.00021917,3]
[380436885,1755766257198,-1515.72,0.00021917,3]
[380436886,1755766257207,-151.0,0.00021917,2]
[380436887,1755766257216,-480.0,0.00021917,3]
[380436888,1755766257225,-73.70467651,0.00021917,2]
[380436890,1755766270353,184.840474,0.00013699,2]
[380436891,1755766471403,200.0,0.0002719,120]
[380436892,1755766591529,200.0,0.00026753,120]
[380436893,1755766651892,200.0,0.00027212,120]
[380437012,1755766751096,-277.6,0.00027332,120]
[380437024,1755766990724,-157.21,0.0002,2]
[380437025,1755767052676,156.94306823,0.00019817,2]
[380437028,1755767143395,300.0,0.00026,120]
[380437029,1755767151156,-471.99860139,0.00020087,2]
[380437030,1755767151177,-184.840474,0.00020187,2]
[380437031,1755767151197,-150.71364408,0.00020187,2]
[380437032,1755767151217,-201.789632,0.00020201,2]
[380437033,1755767151237,-179.64071856,0.00020986,2]
[380437034,1755767151257,-561.71,0.00020989,2]
[380437035,1755767151278,-20.02712552,0.00021028,2]
[380437036,1755767176645,300.0,0.00026,120]
[380437037,1755767231634,300.0,0.00026,120]
[380437038,1755767246094,-829.97287448,0.00021028,2]
[380437039,1755767246118,-123.47630321,0.00021142,2]
[380437040,1755767250332,-456.81095002,0.00021142,2]
[380437041,1755767251334,200.0,0.00027241,120]
[380437042,1755767273081,300.0,0.00026,120]
[380437043,1755767309676,300.0,0.00026,120]
[380437044,1755767348139,-862.7332,0.00020217,2]
[380437045,1755767372094,200.0,0.00026181,120]
[380437046,1755767381766,166.356426,0.00013699,2]
[380437047,1755767382512,300.0,0.00026,120]
[380437092,1755767432732,-166.356426,0.00020187,2]
[380437094,1755767432742,-137.2668,0.00020217,2]
[380437096,1755767432751,-179.195775,0.00020508,2]
[380437098,1755767432760,-169.73006595,0.00020508,2]
[380437100,1755767432769,-1000.0,0.00021104,5]
[380437102,1755767432779,-300.0,0.00021142,2]
[380437104,1755767432788,-1200.0,0.00021142,2]
[380437106,1755767432798,-376.00439007,0.00021143,2]
[380437108,1755767432807,-417.15472785,0.00021143,2]
[380437110,1755767432816,-528.88070896,0.00021143,2]
[380437112,1755767432825,-215.86710461,0.00021143,2]
[380437114,1755767432839,-12690.45384448,0.00021143,2]
[380437116,1755767432848,-5637.22349695,0.0002121,2]
[380437118,1755767432857,-1634.7622998,0.00021245,2]
[380437120,1755767432865,-17878.8284939,0.00021245,2]
[380437122,1755767432874,-920.46504154,0.00021259,2]
[380437124,1755767432883,-151.0,0.0002129,2]
[380437126,1755767432893,-7407.141672,0.0002129,2]
[380437128,1755767432902,-151.0,0.0002129,2]
[380437130,1755767432911,-151.0,0.0002129,2]
[380437132,1755767432920,-151.0,0.0002129,2]
[380437134,1755767432928,-151.0,0.0002129,2]
[380437136,1755767432938,-232.9102796,0.0002129,2]
[380437138,1755767432947,-151.0,0.0002129,2]
[380437140,1755767432956,-151.0,0.0002129,2]
[380437142,1755767432965,-151.0,0.0002129,2]
[380437144,1755767432974,-151.0,0.0002129,2]
[380437146,1755767432983,-289.93098878,0.0002129,2]
[380437148,1755767432992,-19187.29552238,0.0002129,2]
[380437149,1755767433000,-1000.0,0.0002129,2]
[380437151,1755767433010,-1000.0,0.0002129,2]
[380437153,1755767433019,-567.0,0.0002129,2]
[380437155,1755767433029,-538.31,0.00021292,2]
[380437157,1755767433038,-351.6,0.00021293,3]
[380437159,1755767433048,-175.8,0.00021293,3]
[380437162,1755767433058,-527.44,0.00021293,3]
[380437163,1755767433067,-171.91,0.00021293,10]
[380437166,1755767433077,-860.46,0.00021293,3]
[380437168,1755767433086,-151.0,0.000213,3]
[380437169,1755767433095,-500.0,0.00021302,2]
[380437171,1755767433105,-208.39347265,0.00021302,2]
[380437173,1755767433114,-194.44305622,0.00021302,2]
[380437175,1755767433124,-213.34696336,0.00021302,2]
[380437177,1755767433135,-500.0,0.00021302,2]
[380437179,1755767433145,-500.0,0.00021302,2]
[380437181,1755767433154,-394.04264486,0.00021302,2]
[380437183,1755767433164,-248618.56707788,0.00021303,2]
[380437186,1755767433177,-28726.8645,0.00021303,2]
[380437190,1755767433210,-11218.13703665,0.00021303,2]
[380437192,1755767433225,-945.08,0.00021303,2]
[380437332,1755767438653,-5676.0,0.00021303,2]
[380437333,1755767438707,-2616.2761058,0.00021303,2]
[380437334,1755767438763,-72199.07527967,0.00021303,2]
[380437335,1755767438773,-7681.20591386,0.00021345,2]
[380437336,1755767438783,-695.03,0.00021363,10]
[380437337,1755767438792,-160.0,0.00021365,2]
[380437339,1755767438802,-216.95272161,0.00021371,2]
[380437340,1755767438811,-844.19128999,0.00021371,2]
[380437341,1755767438821,-264.84180457,0.00021373,2]
[380437343,1755767438832,-501.66314512,0.00021373,2]
[380437345,1755767438842,-503.34022408,0.00021373,2]
[380437347,1755767438851,-500.0,0.00021373,2]
[380437349,1755767438860,-505.41813531,0.00021373,2]
[380437351,1755767438869,-500.0,0.00021373,2]
[380437353,1755767438878,-617.44463649,0.00021373,2]
[380437355,1755767438887,-509.13413287,0.00021373,2]
[380437357,1755767438897,-500.0,0.00021373,2]
[380437359,1755767438906,-329.35962668,0.00021373,2]
[380437361,1755767438915,-500.0,0.00021373,2]
[380437363,1755767438926,-500.0,0.00021373,2]
[380437365,1755767438935,-500.95561557,0.00021373,2]
[380437367,1755767438944,-500.0,0.00021373,2]
[380437369,1755767438953,-500.0,0.00021373,2]
[380437371,1755767438962,-422.87311309,0.00021373,2]
[380437373,1755767438972,-500.0,0.00021373,2]
[380437375,1755767438981,-500.0,0.00021373,2]
[380437377,1755767438992,-500.0,0.00021373,2]
[380437379,1755767439007,-500.0,0.00021373,2]
[380437381,1755767439016,-500.0,0.00021373,2]
[380437383,1755767439026,-502.6290904,0.00021373,2]
[380437385,1755767439036,-500.0,0.00021373,2]
[380437387,1755767439045,-512.28453431,0.00021373,2]
[380437389,1755767439055,-500.0,0.00021373,2]
[380437391,1755767439064,-505.06699274,0.00021373,2]
[380437393,1755767439074,-500.0,0.00021373,2]
[380437394,1755767439083,-1634.7622998,0.00021388,2]
[380437396,1755767439092,-382.6520678,0.00021391,2]
[380437398,1755767439101,-20503.79757127,0.000214,3]
[380437400,1755767439111,-417.15472785,0.000214,3]
[380437402,1755767439120,-151.0,0.000214,3]
[380437404,1755767439129,-151.0,0.000214,3]
[380437406,1755767439138,-345.99913669,0.000214,3]
[380437408,1755767439148,-528.88070896,0.000214,3]
[380437410,1755767439157,-7965.41053268,0.000214,2]
[380437412,1755767439167,-160.0,0.00021412,2]
[380437414,1755767439176,-160.0,0.00021412,2]
[380437416,1755767439186,-232.28399145,0.00021412,2]
[380437418,1755767439195,-160.0,0.00021412,2]
[380437420,1755767439205,-160.0,0.00021412,2]
[380437422,1755767439214,-1025.17062348,0.00021414,2]
[380437424,1755767439224,-8260.13072239,0.00021455,2]
[380437426,1755767439234,-168.0,0.00021478,2]
[380437428,1755767439243,-90667.31,0.000215,2]
[380437430,1755767439252,-22602.02,0.000215,2]
[380437432,1755767439262,-203399.98,0.000215,2]
[380437434,1755767439270,-151.0,0.000215,3]
[380437436,1755767439280,-151.0,0.000215,3]
[380437438,1755767439289,-4444.80493745,0.00021507,2]
[380437440,1755767439298,-8565.75555911,0.0002151,2]
[380437441,1755767439308,-1634.7622998,0.00021531,2]
[380437443,1755767439317,-8882.6885148,0.00021565,2]
[380437445,1755767439326,-240.25153625,0.00021592,2]
[380437447,1755767439336,-151.0,0.000216,3]
[380437448,1755767439345,-800.0,0.0002162,2]
[380437449,1755767439354,-9211.34798985,0.0002162,2]
[380437450,1755767439364,-800.0,0.00021624,2]
[380437451,1755767439374,-800.0,0.00021631,2]
[380437452,1755767439383,-800.0,0.00021635,2]
[380437453,1755767439392,-500.0,0.00021647,2]
[380437454,1755767439402,-800.0,0.00021654,2]
[380437455,1755767439411,-800.0,0.00021658,2]
[380437456,1755767439421,-17878.82849388,0.00021668,2]
[380437457,1755767439430,-1634.7622998,0.00021674,2]
[380437458,1755767439439,-9552.16786547,0.00021675,2]
[380437459,1755767439448,-151.0,0.000217,4]
[380437460,1755767439458,-151.0,0.000217,4]
[380437461,1755767439467,-800.0,0.00021721,2]
[380437462,1755767439477,-500.0,0.00021729,2]
[380437463,1755767439486,-871.97847733,0.00021729,2]
[380437464,1755767439495,-871.97847733,0.00021729,2]
[380437465,1755767439505,-871.97847733,0.00021729,2]
[380437466,1755767439514,-500.0,0.00021729,2]
[380437467,1755767439524,-871.97847733,0.00021729,2]
[380437468,1755767439534,-871.97847733,0.00021729,2]
[380437469,1755767439544,-871.97847733,0.00021729,2]
[380437470,1755767439553,-871.97847733,0.00021729,2]
[380437471,1755767439562,-322.96738813,0.00021729,2]
[380437472,1755767439571,-871.97847733,0.00021729,2]
[380437473,1755767439580,-871.97847733,0.00021729,2]
[380437474,1755767439589,-871.97847733,0.00021729,2]
[380437475,1755767439599,-871.97847733,0.00021729,2]
[380437476,1755767439608,-871.97847733,0.00021729,2]
[380437477,1755767439617,-871.97847733,0.00021729,2]
[380437478,1755767439626,-871.97847733,0.00021729,2]
[380437479,1755767439635,-871.97847733,0.00021729,2]
[380437480,1755767439644,-871.97847733,0.00021729,2]
[380437481,1755767439653,-871.97847733,0.00021729,2]
[380437482,1755767439662,-871.97847733,0.00021729,2]
[380437483,1755767439672,-871.97847733,0.00021729,2]
[380437484,1755767439681,-871.97847733,0.00021729,2]
[380437485,1755767439690,-9905.5980765,0.0002173,2]
[380437486,1755767439699,-800.0,0.00021732,2]
[380437487,1755767439709,-705.9418722,0.00021778,2]
[380437488,1755767439719,-10272.10520533,0.00021785,2]
[380437489,1755767439728,-800.0,0.00021786,2]
[380437490,1755767439738,-800.0,0.000218,2]
[380437491,1755767439747,-151.0,0.000218,4]
[380437492,1755767439755,-800.0,0.00021813,2]
[380437493,1755767439764,-1000.0,0.00021817,2]
[380437494,1755767439773,-173.49018429,0.00021817,2]
[380437495,1755767439782,-1634.7622998,0.00021817,2]
[380437496,1755767439791,-538.31,0.0002184,2]
[380437497,1755767439800,-10652.17309792,0.0002184,2]
[380437498,1755767439809,-1700.0,0.00021861,2]
[380437499,1755767439818,-326.0,0.00021872,2]
[380437500,1755767439827,-326.0,0.00021872,2]
[380437501,1755767439839,-326.0,0.00021872,2]
[380437502,1755767439848,-326.0,0.00021872,2]
[380437503,1755767439857,-326.0,0.00021872,2]
[380437504,1755767439866,-11046.30350255,0.00021895,2]
[380437505,1755767439876,-150.0,0.000219,2]
[380437506,1755767439885,-1006.958857,0.000219,2]
[380437507,1755767439894,-151.0,0.000219,4]
[380437508,1755767439903,-1428.79583693,0.00021917,2]
[380437509,1755767439913,-150000.0,0.00021917,2]
[380437510,1755767439922,-39440.77866663,0.00021917,2]
[380437511,1755767439931,-1000.0,0.00021917,2]
[380437512,1755767439940,-1000.0,0.00021917,2]
[380437513,1755767439950,-1000.0,0.00021917,2]
[380437514,1755767439958,-1000.0,0.00021917,2]
[380437515,1755767439967,-1007.68024135,0.00021917,2]
[380437516,1755767439976,-610.28091887,0.00021917,2]
[380437517,1755767439987,-480.0,0.00021917,3]
[380437527,1755767440179,-480.0,0.00021917,3]
[380437528,1755767440189,-480.0,0.00021917,3]
[380437529,1755767440198,-205.04137749,0.00021917,3]
[380437530,1755767440207,-480.0,0.00021917,3]
[380437531,1755767440217,-480.0,0.00021917,3]
[380437532,1755767440227,-480.0,0.00021917,3]
[380437533,1755767440237,-480.0,0.00021917,3]
[380437534,1755767440246,-480.0,0.00021917,3]
[380437535,1755767440256,-480.0,0.00021917,3]
[380437536,1755767440266,-480.0,0.00021917,3]
[380437538,1755767440275,-372.12282637,0.00021917,3]
[380437540,1755767440285,-480.0,0.00021917,3]
[380437542,1755767440294,-480.0,0.00021917,3]
[380437544,1755767440305,-234.41230106,0.00021917,3]
[380437546,1755767440315,-480.0,0.00021917,3]
[380437548,1755767440324,-480.0,0.00021917,3]
[380437550,1755767440334,-480.0,0.00021917,3]
[380437552,1755767440343,-442.69221194,0.00021917,3]
[380437554,1755767440353,-480.0,0.00021917,3]
[380437556,1755767440363,-480.0,0.00021917,3]
[380437558,1755767440373,-480.0,0.00021917,3]
[380437560,1755767440381,-480.0,0.00021917,3]
[380437562,1755767440391,-579.74783654,0.00021917,3]
[380437564,1755767440400,-480.0,0.00021917,3]
[380437566,1755767440409,-480.0,0.00021917,3]
[380437568,1755767440418,-480.0,0.00021917,3]
[380437570,1755767440427,-480.0,0.00021917,3]
[380437572,1755767440436,-380.0,0.00021917,3]
[380437574,1755767440445,-480.0,0.00021917,3]
[380437575,1755767440454,-480.0,0.00021917,3]
[380437576,1755767440464,-480.0,0.00021917,3]
[380437577,1755767440473,-480.0,0.00021917,3]
[380437578,1755767440482,-480.0,0.00021917,3]
[380437579,1755767440491,-480.0,0.00021917,3]
[380437580,1755767440499,-480.0,0.00021917,3]
[380437581,1755767440509,-480.0,0.00021917,3]
[380437582,1755767440518,-480.0,0.00021917,3]
[380437583,1755767440527,-480.0,0.00021917,3]
[380437584,1755767440538,-480.0,0.00021917,3]
[380437585,1755767440547,-480.0,0.00021917,3]
[380437586,1755767440556,-480.0,0.00021917,3]
[380437587,1755767440566,-480.0,0.00021917,3]
[380437588,1755767440575,-480.7378238,0.00021917,3]
[380437589,1755767440584,-444.31530037,0.00021917,3]
[380437591,1755767440593,-480.0,0.00021917,3]
[380437593,1755767440603,-152.994243,0.00021917,2]
[380437595,1755767440612,-480.0,0.00021917,3]
[380437596,1755767440621,-480.0,0.00021917,3]
[380437597,1755767440631,-480.0,0.00021917,3]
[380437598,1755767440640,-500.0,0.00021917,3]
[380437599,1755767440651,-480.0,0.00021917,3]
[380437600,1755767440661,-500.0,0.00021917,3]
[380437601,1755767440670,-500.0,0.00021917,3]
[380437602,1755767440679,-480.0,0.00021917,3]
[380437604,1755767440688,-480.0,0.00021917,3]
[380437605,1755767440699,-480.0,0.00021917,3]
[380437607,1755767440709,-480.0,0.00021917,3]
[380437609,1755767440718,-480.0,0.00021917,3]
[380437611,1755767440727,-480.0,0.00021917,3]
[380437613,1755767440736,-480.0,0.00021917,3]
[380437615,1755767440745,-480.0,0.00021917,3]
[380437617,1755767440754,-507.30040105,0.00021917,3]
[380437619,1755767440763,-531.64,0.00021917,3]
[380437621,1755767440773,-243.412904,0.00021917,2]
[380437623,1755767440782,-480.0,0.00021917,3]
[380437625,1755767440791,-501.64397661,0.00021917,3]
[380437627,1755767440800,-156.248367,0.00021917,2]
[380437629,1755767440810,-480.0,0.00021917,3]
[380437631,1755767440819,-480.0,0.00021917,3]
[380437633,1755767440828,-480.0,0.00021917,3]
[380437635,1755767440842,-402.78934189,0.00021917,3]
[380437637,1755767440850,-480.0,0.00021917,3]
[380437638,1755767440859,-480.0,0.00021917,3]
[380437639,1755767440869,-480.0,0.00021917,3]
[380437640,1755767440878,-480.0,0.00021917,3]
[380437641,1755767440888,-480.0,0.00021917,3]
[380437642,1755767440897,-480.0,0.00021917,3]
[380437643,1755767440906,-480.0,0.00021917,3]
[380437644,1755767440916,-480.0,0.00021917,3]
[380437645,1755767440925,-480.0,0.00021917,3]
[380437646,1755767440937,-480.0,0.00021917,3]
[380437647,1755767440946,-480.0,0.00021917,3]
[380437648,1755767440957,-180.139513,0.00021917,2]
[380437649,1755767440968,-480.0,0.00021917,3]
[380437650,1755767440977,-480.0,0.00021917,3]
[380437651,1755767440985,-480.0,0.00021917,3]
[380437652,1755767440994,-579.26764798,0.00021917,3]
[380437653,1755767441004,-480.0,0.00021917,3]
[380437654,1755767441014,-480.0,0.00021917,3]
[380437655,1755767441022,-480.0,0.00021917,3]
[380437656,1755767441031,-648.1,0.00021917,3]
[380437657,1755767441040,-1411.77,0.00021917,3]
[380437658,1755767441048,-480.0,0.00021917,3]
[380437659,1755767441057,-480.0,0.00021917,3]
[380437660,1755767441067,-480.0,0.00021917,3]
[380437661,1755767441077,-480.0,0.00021917,3]
[380437662,1755767441086,-480.0,0.00021917,3]
[380437663,1755767441095,-480.0,0.00021917,3]
[380437664,1755767441105,-480.0,0.00021917,3]
[380437665,1755767441114,-480.0,0.00021917,3]
[380437666,1755767441123,-480.0,0.00021917,3]
[380437667,1755767441132,-480.0,0.00021917,3]
[380437668,1755767441140,-480.0,0.00021917,3]
[380437669,1755767441150,-480.0,0.00021917,3]
[380437670,1755767441159,-480.0,0.00021917,3]
[380437671,1755767441168,-480.0,0.00021917,3]
[380437672,1755767441178,-480.0,0.00021917,3]
[380437673,1755767441187,-458.98349756,0.00021917,3]
[380437674,1755767441209,-21.01650244,0.00021917,3]
[380437675,1755767441218,-480.0,0.00021917,3]
[380437676,1755767441229,-480.0,0.00021917,3]
[380437677,1755767441238,-480.0,0.00021917,3]
[380437678,1755767441247,-554.70261636,0.00021917,3]
[380437679,1755767441257,-480.0,0.00021917,3]
[380437680,1755767441267,-480.0,0.00021917,3]
[380437681,1755767441276,-480.0,0.00021917,3]
[380437682,1755767441286,-480.0,0.00021917,3]
[380437683,1755767441295,-480.0,0.00021917,3]
[380437684,1755767441304,-480.0,0.00021917,3]
[380437685,1755767441314,-480.0,0.00021917,3]
[380437686,1755767441323,-480.0,0.00021917,3]
[380437687,1755767441332,-253.58900037,0.00021917,3]
[380437688,1755767441777,-246.41099963,0.00021917,3]
[380437689,1755767441791,-480.0,0.00021917,3]
[380437690,1755767441802,-480.0,0.00021917,3]
[380437691,1755767441816,-480.0,0.00021917,3]
[380437692,1755767441830,-705.23,0.00021917,3]
[380437693,1755767441844,-879.2,0.00021917,3]
[380437694,1755767441858,-480.0,0.00021917,3]
[380437695,1755767441872,-493.57965148,0.00021917,3]
[380437696,1755767441886,-480.0,0.00021917,3]
[380437697,1755767441896,-480.0,0.00021917,3]
[380437698,1755767441908,-495.21,0.00021917,3]
[380437699,1755767441919,-480.0,0.00021917,3]
[380437700,1755767441934,-480.0,0.00021917,3]
[380437701,1755767441948,-480.0,0.00021917,3]
[380437702,1755767441960,-480.0,0.00021917,3]
[380437703,1755767441972,-480.0,0.00021917,3]
[380437704,1755767441985,-227.44748184,0.00021917,3]
[380437705,1755767441998,-930.88,0.00021917,3]
[380437706,1755767442010,-467.59769003,0.00021917,3]
[380437707,1755767442022,-480.0,0.00021917,3]
[380437708,1755767442037,-480.0,0.00021917,3]
[380437709,1755767442052,-480.0,0.00021917,3]